fUSD/lending_fUSD_20260305
["ID","MTS","AMOUNT","RATE_DAILY","PERIOD"]
[407713206,1772698261251,-457.52,0.00035842,60]
[407713207,1772698261261,-457.52,0.00037225,60]
[407713208,1772698261270,-457.52,0.00038608,60]
[407713209,1772698261279,-319.59212963,0.00039992,90]
[407713210,1772698261294,-137.92787037,0.00039992,90]
[407713211,1772698261303,-231.84345562,0.00041375,90]
[407713212,1772698261332,-225.67654438,0.00041375,90]
[407713213,1772698261342,-151.0,0.00041902,120]
[407713214,1772698261351,-189.624941,0.00041902,120]
[407713215,1772698261361,-929.11724,0.00041902,120]
[407713216,1772698261370,-151.0,0.00041902,120]
[407713217,1772698261379,-102.02627462,0.00041902,120]
[407713218,1772698261391,-48.97372538,0.00041902,120]
[407713219,1772698261400,-189.624941,0.00041902,120]
[407713220,1772698261410,-929.11724,0.00041902,120]
[407713221,1772698261419,-263.378083,0.00041902,120]
[407713222,1772698261428,-151.0,0.00041902,120]
[407713223,1772698261439,-151.0,0.00041902,120]
[407713224,1772698261448,-151.0,0.00041902,120]
[407713225,1772698261458,-2995.86838465,0.00042094,2]
[407713226,1772698261467,-331.53906145,0.00042758,90]
[407713227,1772698261634,-125.98093855,0.00042758,90]
[407713228,1772698261644,-176.01906145,0.00044141,90]
[407713229,1772698262222,502.72289729,0.00016899,2]
[407713230,1772698266874,500.0,0.00016899,2]
[407713231,1772698266932,500.0,0.00016899,2]
[407713232,1772698267298,500.0,0.00016899,2]
[407713233,1772698267497,500.0,0.00016899,2]
[407713234,1772698268146,500.0,0.00016899,2]
[407713235,1772698268418,500.0,0.00016899,2]
[407713236,1772698268475,500.0,0.00016899,2]
[407713237,1772698268649,500.0,0.00016899,2]
[407713238,1772698268923,500.0,0.00016899,2]
[407713239,1772698272071,500.0,0.00016899,2]
[407713240,1772698272380,500.0,0.00016899,2]
[407713241,1772698272649,500.0,0.00016899,2]
[407713242,1772698272922,500.0,0.00016899,2]
[407713243,1772698273151,500.0,0.00016899,2]
[407713244,1772698273429,500.0,0.00016899,2]
[407713245,1772698273684,500.0,0.00016899,2]
[407713246,1772698273939,500.0,0.00016899,2]
[407713247,1772698274210,500.0,0.00016899,2]
[407713248,1772698285213,497.28710271,0.000167,2]
[407713249,1772698285243,10000.01,0.000167,2]
[407713250,1772698285271,10000.01,0.000167,2]
[407713251,1772698285297,10000.01,0.000167,2]
[407713252,1772698285328,10000.01,0.000167,2]
[407713253,1772698285353,10000.01,0.000167,2]
[407713254,1772698285381,10000.01,0.000167,2]
[407713255,1772698285409,10000.01,0.000167,2]
[407713256,1772698285437,10000.01,0.000167,2]
[407713257,1772698285465,10000.01,0.000167,2]
[407713258,1772698291330,-10000.01,0.000167,2]
[407713259,1772698291531,-10000.01,0.000167,2]
[407713260,1772698291651,-10000.01,0.000167,2]
[407713261,1772698291790,-10000.01,0.000167,2]
[407713262,1772698292236,-10000.01,0.000167,2]
[407713263,1772698297729,-10000.01,0.000167,2]
[407713264,1772698297877,-10000.01,0.000167,2]
[407713265,1772698298011,-10000.01,0.000167,2]
[407713266,1772698298147,-10000.01,0.000167,2]
[407713267,1772698298307,-10000.01,0.000167,2]
[407713268,1772698298425,-10000.01,0.000167,2]
[407713269,1772698298574,-10000.01,0.000167,2]
[407713270,1772698298755,-10000.01,0.000167,2]
[407713271,1772698298880,-10000.01,0.000167,2]
[407713272,1772698299007,-10000.01,0.000167,2]
[407713273,1772698299166,-10000.01,0.000167,2]
[407713274,1772698299320,-10000.01,0.000167,2]
[407713275,1772698300937,-10000.01,0.000167,2]
[407713276,1772698301215,-10000.01,0.000167,2]
[407713277,1772698301252,-10000.01,0.000167,2]
[407713278,1772698325895,151.0,0.00014634,2]
[407713279,1772698325926,151.0,0.00014634,2]
[407713280,1772698328619,503.0,0.00014,2]
[407713281,1772698329670,200.0,0.0001202,2]
[407713282,1772698329944,200.0,0.0001202,2]
[407713283,1772698330196,200.0,0.0001202,2]
[407713284,1772698330460,200.0,0.0001202,2]
[407713285,1772698330737,200.0,0.0001202,7]
[407713286,1772698330848,8195.01,7.945e-05,2]
[407713287,1772698330874,2654.34034,7.945e-05,2]
[407713288,1772698336410,701.08059178,0.00012,2]
[407713289,1772698336500,275.0,0.00012,2]
[407713290,1772698340783,500.0,0.00012,2]
[407713291,1772698340959,500.0,0.00012,2]
[407713292,1772698341268,500.0,0.00012,2]
[407713293,1772698341500,500.0,0.000119,2]
[407713294,1772698341767,898.3216374,0.000119,2]
[407713295,1772698342520,151.0,0.00014634,2]
[407713296,1772698347156,504.0,0.00014,2]
[407713297,1772698348095,500.0,0.00012,2]
[407713298,1772698348476,708.79421898,0.000101,2]
[407713299,1772698349672,253.36485322,0.00013699,2]
[407713300,1772698373332,505.0,0.00014,2]
[407713301,1772698390967,500.0,0.00014373,2]
[407713302,1772698391021,502.68587184,0.00014921,2]
[407713303,1772698397325,500.0,0.00014373,2]
[407713304,1772698403569,504.97753483,0.00014921,2]
[407713306,1772698458160,-150.0,0.000159,2]
[407713307,1772698497483,505.0,0.00014,2]
[407713309,1772698518812,252.324992,0.00015951,7]
[407713310,1772698521367,-2855.724516,0.00016286,2]
[407713311,1772698521393,-500.0,0.00016368,2]
[407713312,1772698521419,-505.0,0.00016538,4]
[407713313,1772698521445,-200.0,0.00016575,2]
[407713314,1772698521469,-1200.0,0.00016599,2]
[407713315,1772698521493,-300.0,0.00016599,2]
[407713316,1772698521517,-300.0,0.00016599,2]
[407713317,1772698521543,-1200.0,0.00016599,2]
[407713318,1772698521568,-300.0,0.00016599,2]
[407713319,1772698521592,-167.6761185,0.000166,2]
[407713320,1772698521623,-560.57455582,0.000166,2]
[407713321,1772698521650,-618.67750459,0.000166,2]
[407713322,1772698521677,-304.8826854,0.000166,2]
[407713323,1772698521704,-611.87782129,0.000166,2]
[407713324,1772698521728,-200.0,0.00016603,2]
[407713325,1772698521752,-214.88997829,0.00016649,2]
[407713326,1772698521776,-2802.07935624,0.00016649,2]
[407713327,1772698521800,-151.0,0.00016697,2]
[407713328,1772698521825,-550.0,0.00016699,2]
[407713329,1772698521854,-500.0,0.00016699,2]
[407713330,1772698521882,-500.0,0.00016699,2]
[407713331,1772698521910,-500.0,0.00016699,2]
[407713332,1772698521938,-500.0,0.00016699,2]
[407713333,1772698521965,-500.0,0.00016699,2]
[407713334,1772698521993,-500.0,0.00016699,2]
[407713335,1772698522022,-500.0,0.00016699,2]
[407713336,1772698522049,-500.0,0.00016699,2]
[407713337,1772698522076,-500.0,0.00016699,2]
[407713338,1772698522104,-500.0,0.00016699,2]
[407713339,1772698522131,-500.0,0.00016699,2]
[407713340,1772698522159,-500.0,0.00016699,2]
[407713341,1772698522186,-500.0,0.00016699,2]
[407713342,1772698522214,-500.0,0.00016699,2]
[407713343,1772698522243,-500.0,0.00016699,2]
[407713344,1772698522271,-500.0,0.00016699,2]
[407713345,1772698522299,-500.0,0.00016699,2]
[407713346,1772698522326,-500.0,0.00016699,2]
[407713347,1772698522354,-500.0,0.00016699,2]
[407713348,1772698522382,-500.0,0.00016699,2]
[407713349,1772698522409,-500.0,0.00016699,2]
[407713350,1772698522437,-500.0,0.00016699,2]
[407713351,1772698522464,-500.0,0.00016699,2]
[407713352,1772698522491,-500.0,0.00016699,2]
[407713353,1772698522518,-69457.61746387,0.000167,2]
[407713354,1772698525649,-500.0,0.00016699,2]
[407713355,1772698525685,-500.0,0.00016699,2]
[407713356,1772698525719,-500.0,0.00016699,2]
[407713357,1772698525754,-319.35416494,0.00016699,2]
[407713358,1772698527011,-5099.97667812,0.000167,2]
[407713359,1772698527068,-10000.01,0.000167,2]
[407713360,1772698530472,-10000.01,0.000167,2]
[407713361,1772698530490,-10000.01,0.000167,2]
[407713362,1772698530544,-10000.01,0.000167,2]
[407713363,1772698530672,-10000.01,0.000167,2]
[407713364,1772698530794,-10000.01,0.000167,2]
[407713365,1772698530937,-10000.01,0.000167,2]
[407713366,1772698531071,-10000.01,0.000167,2]
[407713367,1772698531203,-10000.01,0.000167,2]
[407713369,1772698531336,-10000.01,0.000167,2]
[407713370,1772698531454,-10000.01,0.000167,2]
[407713371,1772698531561,-10000.01,0.000167,2]
[407713372,1772698534508,-10000.01,0.000167,2]
[407713373,1772698534565,-10000.01,0.000167,2]
[407713374,1772698561169,504.0,0.00014,2]
[407713377,1772698635741,500.0,0.00012,2]
[407713378,1772698635803,248.24429007,0.00012,2]
[407713379,1772698636212,500.0,0.00012,2]
[407713381,1772698636403,228.06401281,0.00012,2]
[407713382,1772698636445,500.0,0.00012,2]
[407713383,1772698636672,500.0,0.00012,2]
[407713384,1772698637080,807.63217432,0.000101,2]
[407713385,1772698637129,500.0,0.000101,2]
[407713386,1772698637564,510.04779469,0.000101,2]
[407713387,1772698642558,500.0,0.00012,2]
[407713388,1772698643066,500.0,0.00012,2]
[407713389,1772698643555,500.0,0.00012,2]
[407713390,1772698644977,500.0,0.00012,2]
[407713391,1772698645120,500.0,0.000101,2]
[407713392,1772698645260,500.0,0.000101,2]
[407713393,1772698645494,541.66465208,0.000101,2]
[407713394,1772698645965,482.32003099,0.00012,2]
[407713408,1772698853631,505.0,0.00014,2]
[407713419,1772699042748,3999.405,0.000151,2]
[407713420,1772699046968,-150.0,0.00015436,2]
[407713421,1772699046993,-500.0,0.00015486,2]
[407713422,1772699047018,-1164.58992485,0.00015536,2]
[407713423,1772699047043,-432.31387594,0.00015579,2]
[407713424,1772699047067,-2671.478939,0.00015605,2]
[407713425,1772699047091,-1852.42,0.00015636,2]
[407713426,1772699047116,-3240.0,0.00015684,2]
[407713427,1772699047438,-300.0,0.00015719,2]
[407713428,1772699047464,-264.73530605,0.00015755,2]
[407713429,1772699047488,-300.0,0.00015818,2]
[407713430,1772699047512,-300.0,0.00015852,2]
[407713431,1772699047537,-300.0,0.00015853,2]
[407713432,1772699047560,-708.0,0.00015854,2]
[407713433,1772699047585,-4000.0,0.00015855,2]
[407713434,1772699047611,-283.0,0.00015859,2]
[407713435,1772699047636,-2313.42433996,0.00015939,2]
[407713436,1772699047662,-5000.0,0.0001594,2]
[407713437,1772699047688,-1200.0,0.00015998,2]
[407713438,1772699047714,-197.254,0.00015999,2]
[407713439,1772699047740,-2280.93,0.00015999,2]
[407713440,1772699047767,-12541.8536142,0.00016,2]
[407713441,1772699117866,-250.0,0.000159,2]
[407713442,1772699117891,-250.0,0.0001595,2]
[407713443,1772699117916,-3500.0,0.00016,2]
[407713445,1772699191858,505.0,0.00014,2]
[407713446,1772699231917,501.53472858,0.00014276,3]
[407713448,1772699386339,-297.8,0.00015792,2]
[407713449,1772699386369,-446.0,0.00015792,2]
[407713450,1772699401413,-1320.31,0.0001582,2]
[407713451,1772699403531,282.0,0.0001582,2]
[407713452,1772699403861,300.0,0.0001582,2]
[407713453,1772699416504,-890.26,0.00015906,2]
[407713454,1772699427995,250.0,0.00015,2]
[407713455,1772699431606,-477.0473181,0.00016,2]
[407713456,1772699431638,-150.0,0.00016,30]
[407713459,1772699432170,-4205.16609948,0.00016006,2]
[407713460,1772699432180,-1200.0,0.0001625,2]
[407713461,1772699432190,-300.0,0.0001625,2]
[407713462,1772699432199,-4000.0,0.00016251,2]
[407713463,1772699432208,-611.68679181,0.0001649,2]
[407713464,1772699432218,-578.1921711,0.00016498,2]
[407713465,1772699432227,-550.0,0.00016499,2]
[407713466,1772699432236,-307.90810153,0.00016499,2]
[407713467,1772699432246,-3852.54572131,0.000165,2]
[407713468,1772699432325,-500.0,0.00016499,2]
[407713470,1772699432335,-500.0,0.00016499,2]
[407713472,1772699432344,-65617.99575634,0.000165,2]
[407713474,1772699432354,-2371.5,0.000165,2]
[407713478,1772699432387,-6014.93803189,0.000165,2]
[407713481,1772699432399,-5880.0,0.000165,2]
[407713483,1772699432410,-1300.0,0.000165,2]
[407713485,1772699432421,-3250.0,0.000165,2]
[407713494,1772699432502,-447.98999131,0.000165,2]
[407713503,1772699438066,-500.0,0.00016499,2]
[407713504,1772699438076,-500.0,0.00016499,2]
[407713505,1772699438085,-500.0,0.00016499,2]
[407713506,1772699438094,-500.0,0.00016499,2]
[407713507,1772699438104,-500.0,0.00016499,2]
[407713508,1772699438113,-444.77445898,0.00016499,2]
[407713509,1772699438124,-55.22554102,0.00016499,2]
[407713510,1772699438133,-246.00324199,0.00016499,2]
[407713511,1772699438144,-253.99675801,0.00016499,2]
[407713512,1772699438154,-500.0,0.00016499,2]
[407713513,1772699438163,-500.0,0.00016499,2]
[407713514,1772699438172,-500.0,0.00016499,2]
[407713515,1772699438181,-500.0,0.00016499,2]
[407713516,1772699438190,-500.0,0.00016499,2]
[407713517,1772699438199,-531.9354165,0.00016499,2]
[407713518,1772699438209,-500.0,0.00016499,2]
[407713519,1772699438220,-500.0,0.00016499,2]
[407713520,1772699438229,-500.0,0.00016499,2]
[407713521,1772699438238,-500.0,0.00016499,2]
[407713522,1772699438247,-500.0,0.00016499,2]
[407713523,1772699438256,-500.0,0.00016499,2]
[407713524,1772699438266,-500.0,0.00016499,2]
[407713525,1772699438275,-500.0,0.00016499,2]
[407713526,1772699438284,-500.0,0.00016499,2]
[407713527,1772699438293,-2411265.03049915,0.000165,2]
[407713528,1772699438304,-1000.0,0.00016599,2]
[407713529,1772699438313,-198.10302608,0.000166,2]
[407713530,1772699438322,-1000.0,0.000166,2]
[407713531,1772699438331,-32906.2197,0.000166,2]
[407713532,1772699438340,-151.52772065,0.000166,2]
[407713533,1772699438349,-5837.83,0.000166,2]
[407713534,1772699438359,-2500.0,0.000166,2]
[407713535,1772699438368,-1158.4890981,0.00016603,2]
[407713536,1772699438378,-525.17966754,0.00016603,2]
[407713537,1772699438387,-4740.89154141,0.00016603,2]
[407713539,1772699438396,-287.37049953,0.00016603,2]
[407713541,1772699438405,-4000.0,0.00016648,2]
[407713543,1772699438415,-496.46,0.00016685,2]
[407713544,1772699438424,-200.0,0.0001669,2]
[407713547,1772699438434,-500.0,0.0001669,2]
[407713549,1772699438443,-151.0,0.0001669,2]
[407713550,1772699438452,-151.0,0.0001669,2]
[407713552,1772699438461,-151.0,0.0001669,2]
[407713554,1772699438471,-151.0,0.0001669,2]
[407713555,1772699438480,-151.0,0.0001669,2]
[407713556,1772699438489,-151.0,0.0001669,2]
[407713557,1772699438498,-151.0,0.0001669,2]
[407713558,1772699438508,-151.0,0.0001669,2]
[407713559,1772699438518,-151.0,0.0001669,2]
[407713560,1772699438527,-151.0,0.0001669,2]
[407713561,1772699438536,-151.0,0.0001669,2]
[407713562,1772699438546,-151.0,0.0001669,2]
[407713563,1772699438555,-231.35,0.0001669,2]
[407713564,1772699438564,-151.0,0.00016697,2]
[407713565,1772699438574,-500.0,0.00016699,2]
[407713566,1772699438583,-500.0,0.00016699,2]
[407713567,1772699438592,-500.0,0.00016699,2]
[407713568,1772699438601,-500.0,0.00016699,2]
[407713569,1772699438610,-500.0,0.00016699,2]
[407713570,1772699438620,-500.0,0.00016699,2]
[407713571,1772699438629,-500.0,0.00016699,2]
[407713572,1772699438638,-500.0,0.00016699,2]
[407713573,1772699438647,-500.0,0.00016699,2]
[407713574,1772699438658,-500.0,0.00016699,2]
[407713575,1772699438667,-500.0,0.00016699,2]
[407713576,1772699438677,-500.0,0.00016699,2]
[407713577,1772699438686,-500.0,0.00016699,2]
[407713578,1772699438696,-500.0,0.00016699,2]
[407713579,1772699438705,-500.0,0.00016699,2]
[407713580,1772699438715,-500.0,0.00016699,2]
[407713581,1772699438724,-500.0,0.00016699,2]
[407713582,1772699438734,-500.0,0.00016699,2]
[407713583,1772699438743,-500.0,0.00016699,2]
[407713584,1772699438753,-500.0,0.00016699,2]
[407713585,1772699438762,-500.0,0.00016699,2]
[407713586,1772699438772,-500.0,0.00016699,2]
[407713587,1772699438781,-500.0,0.00016699,2]
[407713588,1772699438791,-500.0,0.00016699,2]
[407713589,1772699438800,-500.0,0.00016699,2]
[407713590,1772699438809,-500.0,0.00016699,2]
[407713591,1772699438819,-500.0,0.00016699,2]
[407713592,1772699438828,-500.0,0.00016699,2]
[407713593,1772699438838,-500.0,0.00016699,2]
[407713594,1772699438847,-500.0,0.00016699,2]
[407713595,1772699438856,-500.0,0.00016699,2]
[407713596,1772699438866,-500.0,0.00016699,2]
[407713597,1772699438879,-500.0,0.00016699,2]
[407713598,1772699438889,-500.0,0.00016699,2]
[407713599,1772699438898,-500.0,0.00016699,2]
[407713600,1772699438908,-500.0,0.00016699,2]
[407713601,1772699439156,-500.0,0.00016699,2]
[407713602,1772699439166,-500.0,0.00016699,2]
[407713603,1772699439175,-500.0,0.00016699,2]
[407713604,1772699439184,-500.0,0.00016699,2]
[407713605,1772699439193,-500.0,0.00016699,2]
[407713606,1772699439203,-500.0,0.00016699,2]
[407713607,1772699439212,-605.06782672,0.00016699,2]
[407713608,1772699439222,-500.0,0.00016699,2]
[407713609,1772699439231,-500.0,0.00016699,2]
[407713610,1772699439241,-500.0,0.00016699,2]
[407713611,1772699439253,-500.0,0.00016699,2]
[407713612,1772699439262,-500.0,0.00016699,2]
[407713613,1772699439271,-500.0,0.00016699,2]
[407713614,1772699439281,-500.0,0.00016699,2]
[407713615,1772699439290,-500.0,0.00016699,2]
[407713616,1772699439300,-500.0,0.00016699,2]
[407713617,1772699439311,-500.0,0.00016699,2]
[407713618,1772699439321,-500.0,0.00016699,2]
[407713619,1772699439331,-500.0,0.00016699,2]
[407713620,1772699439340,-500.0,0.00016699,2]
[407713621,1772699439351,-500.0,0.00016699,2]
[407713622,1772699439359,-500.0,0.00016699,2]
[407713623,1772699439370,-500.0,0.00016699,2]
[407713624,1772699439379,-500.0,0.00016699,2]
[407713625,1772699439388,-500.0,0.00016699,2]
[407713626,1772699439398,-500.0,0.00016699,2]
[407713627,1772699439407,-500.0,0.00016699,2]
[407713628,1772699439416,-500.0,0.00016699,2]
[407713629,1772699439426,-500.0,0.00016699,2]
[407713630,1772699439435,-500.0,0.00016699,2]
[407713631,1772699439444,-500.0,0.00016699,2]
[407713632,1772699439453,-500.0,0.00016699,2]
[407713633,1772699439463,-500.0,0.00016699,2]
[407713634,1772699439473,-500.0,0.00016699,2]
[407713635,1772699439483,-500.0,0.00016699,2]
[407713636,1772699439493,-500.0,0.00016699,2]
[407713637,1772699439504,-500.0,0.00016699,2]
[407713638,1772699439513,-602.31279484,0.00016699,2]
[407713639,1772699439523,-890.26,0.00016701,2]
[407713640,1772699439532,-166.66,0.00016703,2]
[407713641,1772699439542,-151.0,0.00016745,2]
[407713642,1772699439551,-156.87,0.0001679,2]
[407713643,1772699439559,-1279.08,0.000168,2]
[407713644,1772699439569,-609.73051546,0.000168,2]
[407713645,1772699439578,-413.0,0.00016833,2]
[407713646,1772699439587,-218.0,0.00016866,2]
[407713647,1772699439597,-505.0,0.0001687,4]
[407713648,1772699439606,-500.0,0.00016898,2]
[407713649,1772699439615,-500.0,0.00016898,2]
[407713650,1772699439624,-626.77329208,0.00016898,2]
[407713651,1772699439633,-315.60173525,0.00016898,2]
[407713652,1772699439642,-191.9447673,0.00016898,2]
[407713653,1772699439652,-500.0,0.00016898,2]
[407713654,1772699439661,-500.0,0.00016898,2]
[407713655,1772699439670,-500.0,0.00016898,2]
[407713656,1772699439679,-255.32179072,0.00016898,2]
[407713657,1772699439688,-500.0,0.00016898,2]
[407713658,1772699439698,-500.0,0.00016899,2]
[407713659,1772699439707,-500.0,0.00016899,2]
[407713660,1772699439716,-500.0,0.00016899,2]
[407713661,1772699439726,-500.0,0.00016899,2]
[407713662,1772699439735,-500.0,0.00016899,2]
[407713663,1772699439744,-500.0,0.00016899,2]
[407713664,1772699439753,-500.0,0.00016899,2]
[407713665,1772699439763,-500.0,0.00016899,2]
[407713666,1772699439772,-500.0,0.00016899,2]
[407713667,1772699439782,-500.0,0.00016899,2]
[407713668,1772699439792,-500.0,0.00016899,2]
[407713669,1772699439801,-500.0,0.00016899,2]
[407713670,1772699439811,-500.0,0.00016899,2]
[407713671,1772699439820,-500.0,0.00016899,2]
[407713672,1772699439830,-500.0,0.00016899,2]
[407713673,1772699439840,-500.0,0.00016899,2]
[407713674,1772699439849,-500.0,0.00016899,2]
[407713675,1772699439858,-500.0,0.00016899,2]
[407713676,1772699439868,-500.0,0.00016899,2]
[407713677,1772699439879,-500.0,0.00016899,2]
[407713678,1772699439888,-500.0,0.00016899,2]
[407713679,1772699439898,-500.0,0.00016899,2]
[407713680,1772699439907,-500.0,0.00016899,2]
[407713681,1772699439917,-500.0,0.00016899,2]
[407713682,1772699439927,-500.0,0.00016899,2]
[407713683,1772699439936,-500.0,0.00016899,2]
[407713684,1772699439946,-500.0,0.00016899,2]
[407713685,1772699439955,-500.0,0.00016899,2]
[407713686,1772699439964,-500.0,0.00016899,2]
[407713687,1772699439973,-500.0,0.00016899,2]
[407713688,1772699439983,-500.0,0.00016899,2]
[407713689,1772699439992,-500.0,0.00016899,2]
[407713690,1772699440001,-500.0,0.00016899,2]
[407713691,1772699440010,-500.0,0.00016899,2]
[407713692,1772699440019,-500.0,0.00016899,2]
[407713693,1772699440028,-500.0,0.00016899,2]
[407713694,1772699440037,-500.0,0.00016899,2]
[407713695,1772699440047,-500.0,0.00016899,2]
[407713696,1772699440056,-506.37477343,0.00016899,2]
[407713697,1772699440065,-500.0,0.00016899,2]
[407713698,1772699440074,-500.0,0.00016899,2]
[407713699,1772699440084,-500.0,0.00016899,2]
[407713700,1772699440093,-500.0,0.00016899,2]
[407713701,1772699440103,-500.0,0.00016899,2]
[407713702,1772699440112,-500.0,0.00016899,2]
[407713703,1772699440121,-500.0,0.00016899,2]
[407713704,1772699440130,-518.06665456,0.00016899,2]
[407713705,1772699440140,-536.39251583,0.00016899,2]
[407713706,1772699440149,-582.28,0.00016899,2]
[407713707,1772699440158,-582.28,0.00016899,2]
[407713708,1772699440167,-582.28,0.00016899,2]
[407713709,1772699440176,-582.28,0.00016899,2]
[407713710,1772699440186,-582.28,0.00016899,2]
[407713711,1772699440195,-582.28,0.00016899,2]
[407713712,1772699440204,-582.28,0.00016899,2]
[407713713,1772699440214,-582.28,0.00016899,2]
[407713714,1772699440224,-582.28,0.00016899,2]
[407713715,1772699440234,-582.28,0.00016899,2]
[407713716,1772699440254,-500.0,0.00016899,2]
[407713717,1772699440264,-500.0,0.00016899,2]
[407713719,1772699440274,-500.0,0.00016899,2]
[407713720,1772699440283,-500.0,0.00016899,2]
[407713721,1772699440293,-500.0,0.00016899,2]
[407713722,1772699440303,-500.0,0.00016899,2]
[407713723,1772699440314,-500.0,0.00016899,2]
[407713724,1772699440323,-500.0,0.00016899,2]
[407713725,1772699440333,-500.0,0.00016899,2]
[407713726,1772699440342,-500.0,0.00016899,2]
[407713727,1772699440351,-500.0,0.00016899,2]
[407713728,1772699440361,-500.0,0.00016899,2]
[407713729,1772699440370,-500.0,0.00016899,2]
[407713730,1772699440380,-500.0,0.00016899,2]
[407713731,1772699440391,-500.0,0.00016899,2]
[407713732,1772699440401,-500.0,0.00016899,2]
[407713733,1772699440412,-500.0,0.00016899,2]
[407713734,1772699440424,-500.0,0.00016899,2]
[407713735,1772699440442,-500.0,0.00016899,2]
[407713736,1772699440452,-500.0,0.00016899,2]
[407713737,1772699440462,-500.0,0.00016899,2]
[407713738,1772699440475,-500.0,0.00016899,2]
[407713739,1772699440485,-500.0,0.00016899,2]
[407713740,1772699440495,-509.14901149,0.00016899,2]
[407713741,1772699440504,-250.0,0.00016899,2]
[407713742,1772699440514,-250.0,0.00016899,2]
[407713743,1772699440523,-250.0,0.00016899,2]
[407713744,1772699440532,-250.0,0.00016899,2]
[407713745,1772699440541,-250.0,0.00016899,2]
[407713746,1772699440551,-250.0,0.00016899,2]
[407713747,1772699440560,-250.0,0.00016899,2]
[407713748,1772699440569,-250.0,0.00016899,2]
[407713749,1772699440579,-250.0,0.00016899,2]
[407713750,1772699440588,-250.0,0.00016899,2]
[407713751,1772699440598,-250.0,0.00016899,2]
[407713752,1772699440607,-250.0,0.00016899,2]
[407713753,1772699440620,-250.0,0.00016899,2]
[407713754,1772699440630,-250.0,0.00016899,2]
[407713755,1772699440639,-250.0,0.00016899,2]
[407713756,1772699440648,-250.0,0.00016899,2]
[407713757,1772699440658,-250.0,0.00016899,2]
[407713758,1772699440668,-250.0,0.00016899,2]
[407713759,1772699440678,-250.0,0.00016899,2]
[407713760,1772699440688,-250.0,0.00016899,2]
[407713761,1772699440698,-250.0,0.00016899,2]
[407713762,1772699440708,-250.0,0.00016899,2]
[407713763,1772699440718,-250.0,0.00016899,2]
[407713764,1772699440728,-250.0,0.00016899,2]
[407713765,1772699440738,-250.0,0.00016899,2]
[407713766,1772699440748,-250.0,0.00016899,2]
[407713767,1772699440758,-192.28,0.00016899,2]
[407713768,1772699440767,-1256.33,0.00016899,2]
[407713769,1772699440777,-1256.33,0.00016899,2]
[407713770,1772699440787,-1256.33,0.00016899,2]
[407713771,1772699440796,-1256.33,0.00016899,2]
[407713772,1772699440806,-1256.33,0.00016899,2]
[407713773,1772699440820,-1256.33,0.00016899,2]